Cogmind - Beta 15 @@@ ROGUE MODE // 2025.06.18 @ 10:16:24 // Halloween2020/ForbiddenLore Player: Storm Mk9 Result: Destroyed by 17-IH3(R) with Subdweller Laser Performance ------------- Evolutions (0) 0 Regions Visited (2) 400 Robots Destroyed (19) 95 Value Destroyed (494) 494 Prototype IDs (14) 280 Alien Tech Used (0) 0 Bonus (0) 0 TOTAL SCORE: 1269 Bonus ------- None Cogmind --------- Core Integrity 0/250 Matter 243/300 Energy 238/250 System Corruption 2% Temperature Cool (6) Movement Core (850) Ox16 Location -10/Subcaves Parts ------- > --- POWER (1) -------- Ion Engine > --- PROPULSION (2) --- (None) > --- UTILITY (2) ------ High-capacity Storage Unit > --- WEAPON (2) ------- Battle Rifle Subdweller Machine Gun > --- INVENTORY (20) --- Light Nuclear Core Improved Heat Sink High-capacity Matter Pod (200) EM Pulse Gun Light Assault Rifle Light Assault Rifle Light Assault Rifle Subdweller Machine Gun Mining Laser Peak State ------------ > --- POWER ------------ Ion Engine > --- PROPULSION ------- Light Treads Light Treads > --- UTILITY ---------- Improved Heat Sink Small Storage Unit > --- WEAPON ----------- Medium Laser Light Assault Rifle > --- INVENTORY -------- Ion Engine Light Nuclear Core High-capacity Matter Pod EM Pulse Gun Medium Laser Light Assault Rifle Light Assault Rifle Grenade Launcher [Rating: 10] Favorites ----------- Power Ion Engine Engine Ion Engine Propulsion Light Treads Treads Light Treads Utility Seismic Detector Device Seismic Detector Storage High-capacity Storage Unit Protection Light Armor Plating Weapon Light Assault Rifle Energy Gun Medium Laser Ballistic Gun Light Assault Rifle Launcher Grenade Launcher Special Weapon Mining Laser Build | -11 -10 -10 ------- Run | Yrd Mat Sub Slots Evolved . | . . . Power . | . . . Propulsion . | . . . Utility . | . . . Weapon . | . . . Parts Attached 19 | 7 6 6 Power 2 | 1 . 1 Engine 2 | 1 . 1 Core . | . . . Reactor . | . . . Propulsion 3 | 2 1 . Treads 3 | 2 1 . Leg . | . . . Wheel . | . . . Hover . | . . . Flight . | . . . Utility 6 | 2 4 . Device 3 | 1 2 . Storage 2 | 1 1 . Processor . | . . . Hackware . | . . . Protection 1 | . 1 . Artifact . | . . . Weapon 8 | 2 1 5 Energy Gun 2 | . 1 1 Energy Cannon . | . . . Ballistic Gun 4 | 2 . 2 Ballistic Cannon . | . . . Launcher 1 | . . 1 Special Weapon 1 | . . 1 Impact Weapon . | . . . Slashing Weapon . | . . . Piercing Weapon . | . . . Special Melee Weapon . | . . . Unidentified Prototypes . | . . . Parts Lost 11 | . 2 9 Power 1 | . . 1 Propulsion 3 | . . 3 Utility 3 | . 2 1 Weapon 4 | . . 4 Highest Loss Streak 4 | . 1 4 To Critical Strikes 1 | . . 1 Average Backups 9 | 2 8 10 Power 1 | . 1 1 Propulsion . | . . . Utility 1 | . 1 2 Weapon 5 | 1 4 6 Tool/Special . | . . . Unused Backups 7 | . 1 6 Power 1 | . . 1 Propulsion . | . . . Utility 2 | . 1 1 Weapon 4 | . . 4 Tool/Special . | . . . Average Slot Usage (%) 93 | . 99 90 Engine 13 | . 14 13 Treads 22 | . 28 19 Device 12 | . 11 13 Storage 14 | . 14 14 Protection 1 | . 2 . Energy Gun 11 | . 8 13 Ballistic Gun 13 | . 19 9 Special Weapon 2 | . . 4 Peak Build Rating 10 | 7 10 8 Average Rating 7 | 4 8 7 On Entrance 5 | . 7 8 Naked Turns . | . . . Heaviest Build 52 | 13 49 52 Greatest Support 40 | 40 40 40 Greatest Overweight (x) 2 | 1 1 2 Average Overweight (x) 1 | . . 1 Largest Inventory Capacity 20 | 8 20 20 Average Capacity 17 | 7 14 20 Most Carried 13 | 6 12 13 Average Carried 9 | 2 8 10 Final Capacity 20 | 8 20 20 Final Carried 12 | 2 12 9 Class Distribution -------------------- 100% | Mutant Dominant Class ---------------- Mutant | -10/Materials Mutant | -10/Subcaves Resources | -11 -10 -10 ----------- Run | Yrd Mat Sub Matter Collected 815 | 242 381 192 Remotely . | . . . Salvage Created 550 | 43 293 214 Parts 37 | 7 19 11 Haulers Intercepted . | . . . Recyclers Shooed . | . . . Parts Field Recycled . | . . . Retrieved Matter . | . . . Parts Self-Destructed 7 | . . 7 Prevented . | . . . Kills | -11 -10 -10 ------- Run | Yrd Mat Sub Combat Hostiles Destroyed 16 | . 9 7 Guns 13 | . 9 4 AOE 3 | . . 3 Classes Destroyed 4 | 1 2 1 Tunneler 3 | 2 1 . Swarmer 5 | . 4 1 Grunt 5 | . 5 . Subdweller 6 | . . 6 Best Kill Streak 2 | 1 2 2 Combat Bots Only 2 | . 2 2 Max Kills in Single Turn 2 | 1 2 1 Gunslinging 1 | . 1 . Exploded 1 | . . 1 Melee . | . . . Uniques/NPCs Destroyed . | . . . Combat | -11 -10 -10 -------- Run | Yrd Mat Sub Hostile Shots Fired 113 | . 62 51 Missed 28 | . 12 16 Hits 85 | . 50 35 Projectile 85 | . 50 35 Critical Strikes 1 | . . 1 Damage Taken 1346 | . 573 773 Core 255 | . 98 157 Absorbed by Shields . | . . . Core Remaining (%) 100 | 100 . . Volleys Fired 93 | 4 42 47 Largest 2 | 2 2 2 Hottest 100 | 40 70 100 Shots Fired 164 | 8 84 72 Gun 142 | 8 84 50 Cannon . | . . . Launcher 7 | . . 7 Special 15 | . . 15 Kinetic 115 | 8 79 28 Thermal 42 | . 5 37 Explosive 7 | . . 7 Electromagnetic . | . . . Robot Hit Streak 18 | 3 11 18 Robot Miss Streak 5 | 1 5 2 Penetration Max . | . . . Secondary Targets 1 | . 1 . Max Gunslinging Chain 1 | . 1 . Shots Hit Robots 109 | 5 56 48 Core Hits 39 | 2 22 15 Critical Kills . | . . . Critical Parts Destroyed . | . . . Critical Strikes 2 | . . 2 Burn 2 | . . 2 Melee Attacks . | . . . Impact . | . . . Slashing . | . . . Piercing . | . . . Sneak Attacks . | . . . Combat Hostiles . | . . . Follow-up Attacks . | . . . Damage Inflicted 1358 | 44 501 813 Guns 963 | 44 501 418 Cannons . | . . . Explosions 395 | . . 395 Melee . | . . . Ramming . | . . . Kinetic 700 | 44 436 220 Thermal 263 | . 65 198 Explosive 395 | . . 395 Electromagnetic . | . . . Impact . | . . . Slashing . | . . . Piercing . | . . . Highest Corruption 2 | . 2 2 Average Corruption 2 | . 2 2 Corruption Purged . | . . . Corruption Blocked . | . . . Effects 36 | . 11 25 Message Errors 10 | . 6 4 Matter Fused 9 | . 3 6 Heat Flow Errors 7 | . . 7 Energy Discharges 3 | . . 3 Parts Fused 1 | . 1 . Data Loss (minor) 2 | . . 2 Data Loss (major) 1 | . . 1 Misfires 2 | . . 2 Alerts 1 | . 1 . Overload Shots . | . . . Overflow Damage 8 | . . 8 Projectiles . | . . . Explosions 8 | . . 8 Melee . | . . . Knockbacks . | . . . Impact . | . . . Kinetic . | . . . Secondary . | . . . Self-Inflicted Damage 37 | . . 37 Shots 2 | . . 2 Rammed . | . . . Targets Rammed . | . . . Kicked . | . . . Crushed . | . . . Highest Temperature 268 | . 58 268 Average Temperature 52 | . 15 115 Received Heat Transfer 297 | . 177 120 Siege Activations . | . . . Martial Activations . | . . . Shielding Activations . | . . . Robots Disrupted . | . . . Combat Hostiles . | . . . Robots Corrupted . | . . . Combat Hostiles . | . . . Parts Fried . | . . . Impact Corruptions . | . . . Robots Melted . | . . . Combat Hostiles . | . . . Parts Melted 4 | . . 4 Heat Transferred 925 | . 185 740 Parts Sabotaged . | . . . Parts Stolen . | . . . Parts Stripped . | . . . Power Chain Reactions . | . . . Alert | -11 -10 -10 ------- Run | Yrd Mat Sub Maximum Alert Level . | . . . Low Security (%) 100 | 100 100 . Level 1 . | . . . Level 2 . | . . . Level 3 . | . . . Level 4 . | . . . Level 5 . | . . . High Security . | . . . Max Security . | . . . Peak Influence 93 | 5 93 . Initial . | . . . Average 19 | . 21 . Influence Increases 339 | 10 279 50 Destroy 0b10 Robot/C 200 | . 180 20 Destroy 0b10 Robot/NC 15 | 10 5 . Destroy Leader 40 | . 40 . Successful Hack 39 | . 39 . Lose Combat Pursuer 45 | . 15 30 Influence Decreases 339 | 10 279 50 Time Decay 329 | 10 269 50 Lost Part 10 | . 10 . Squads Dispatched 2 | . 2 . Investigation . | . . . Extermination . | . . . Reinforcement 2 | . 2 . Assault . | . . . Garrison . | . . . Intercept . | . . . Searches Triggered . | . . . Construction Impeded . | . . . Haulers Reinforced . | . . . Active Scanning Responses . | . . . Cargo Convoy Interrupts . | . . . Stealth | -11 -10 -10 --------- Run | Yrd Mat Sub Distress Signals 2 | . 2 . Communications Jammed . | . . . Distress Signals . | . . . Times Spotted 29 | . 16 13 Peak Tracking Total 3 | . 3 3 Tactical Retreats 3 | . 1 2 Traps | -11 -10 -10 ------- Run | Yrd Mat Sub Traps Triggered 4 | . 2 2 Indirectly . | . . . Trap Hack Attempts . | . . . Triggered . | . . . Disarmed . | . . . Reprogrammed . | . . . Reused . | . . . Traps Extracted . | . . . Installed . | . . . Triggered . | . . . Machines | -11 -10 -10 ---------- Run | Yrd Mat Sub Machines Disabled . | . . . Max in Single Turn . | . . . Machines Repaired . | . . . Machines Dismantled . | . . . Machines Sabotaged . | . . . Overloaded Fab Kills . | . . . Hacking | -11 -10 -10 --------- Run | Yrd Mat Sub Machines Accessed 5 | . 4 1 Terminals 4 | . 4 . Fabricators . | . . . Repair Stations . | . . . Recycling Units . | . . . Scanalyzers . | . . . Garrison Access . | . . . Total Hacks 14 | . 13 1 Successful 10 | . 9 1 Failed 4 | . 4 . Catastrophic 1 | . 1 . Database Lockouts . | . . . Manual 8 | . 8 . Terminals 13 | . 13 . Fabricators . | . . . Repair Stations . | . . . Recycling Units . | . . . Scanalyzers . | . . . Garrison Access . | . . . Terminal Hacks 6 | . 5 1 Robot Analysis 2 | . 2 . Prototype ID Bank 1 | . 1 . Terminal Index 1 | . 1 . Locate Traps 1 | . 1 . Proto ID Catalog 1 | . . 1 Fabricator Hacks . | . . . Repair Station Hacks . | . . . Recycling Unit Hacks . | . . . Scanalyzer . | . . . Garrison Access Hacks . | . . . Unauthorized Hacks 4 | . 4 . Terminals 4 | . 4 . Track 1 | . 1 . Botnet 1 | . 1 . Disrupt 2 | . 2 . Fabricators . | . . . Repair Stations . | . . . Recycling Units . | . . . Scanalyzers . | . . . Garrison Access . | . . . Data Cores Recovered . | . . . Used . | . . . Hacking Detections 3 | . 3 . Full Trace Events . | . . . Feedback Events . | . . . Feedback Blocked . | . . . Robot Schematics Acquired . | . . . Robots Built . | . . . Authchips . | . . . Time . | . . . Total Robot Build Rating . | . . . Part Schematics Acquired . | . . . Parts Built . | . . . Authchips . | . . . Time . | . . . Total Part Build Rating . | . . . Parts Repaired . | . . . Time . | . . . Parts Recycled . | . . . Recycled Matter . | . . . Retrieved Matter . | . . . Retrieved Components . | . . . Parts Scanalyzed . | . . . Part Schematics Acquired . | . . . Parts Damaged . | . . . Bothacking | -11 -10 -10 ------------ Run | Yrd Mat Sub Used RIF Installer . | . . . Robots Hacked . | . . . Non-combat . | . . . Combat . | . . . Robot Hacks Applied . | . . . Relay Couplers Released . | . . . Fabnet Peak Effective % . | . . . Robots Rewired . | . . . Allies Hacked . | . . . Hacks Repelled . | . . . Allies | -11 -10 -10 -------- Run | Yrd Mat Sub Total Allies . | . . . Largest Group . | . . . Highest-Rated Group . | . . . Highest-Rated Ally . | . . . Total Orders . | . . . Ally Attacks . | . . . Total Damage . | . . . Kills . | . . . Allies Corrupted . | . . . Allies Melted . | . . . Intel | -11 -10 -10 ------- Run | Yrd Mat Sub Active Infowar (turns) 3003 | 8 723 2272 Seismic 3003 | 8 723 2272 Robot Analysis Total 2 | . 2 . Derelict Logs Recovered 1 | . . 1 Drone Launches . | . . . Drone Recoveries . | . . . Exploration | -11 -10 -10 ------------- Run | Yrd Mat Sub Turns Passed 3670 | 119 1268 2283 Spaces Moved 1308 | 68 520 720 Core 15 | 15 . . Treads 1293 | 53 520 720 Legs . | . . . Wheels . | . . . Hover . | . . . Flight . | . . . Fastest Speed 50 | 50 160 240 Average Speed 242 | 137 200 282 Slowest Speed 320 | 160 240 320 Overloaded Moves . | . . . Propulsion Burnouts . | . . . Robots Hopped . | . . . Potential Cave-ins . | . . . Cave-ins Triggered . | . . . Exploration Rate (%) 39 | 5 74 38 Regions Visited 2 Branch Regions 1 Pre-discovered Areas . | . . . Known Exits Taken . | . . . Unknown Exits Taken 2 | 1 1 . Scrap Searched 6 | . . 6 Spaces Dug . | . . . Terrain Destroyed 31 | . . 31 Melee . | . . . Projectile . | . . . AOE 31 | . . 31 Terrain Rammed . | . . . Walls Destroyed . | . . . Machines Disabled . | . . . Actions | -11 -10 -10 --------- Run | Yrd Mat Sub Total 1630 | 86 678 866 Wait 178 | . 95 83 Move 1306 | 67 519 720 Hop . | . . . Pick Up 24 | 8 13 3 Fast Attach 1 | 1 . . Attach 14 | 6 2 6 Detach . | . . . Swap 11 | . 4 7 Drop 3 | . 3 . Fire 93 | 4 42 47 Melee . | . . . Ram . | . . . Kick . | . . . Crush . | . . . Escape Stasis . | . . . Rewire . | . . . Trap . | . . . Miscellaneous . | . . . Route ------- -11/Scrapyard -10/Materials (discovered 5 exits: [*Mat x3] / [*Min] / *Sub) -10/Subcaves History --------- Turn | Location | Event 5 | -11/Scrapyard | Discovered new exit (range 14) 120 | -11/Scrapyard | Entered Materials 303 | -10/Materials | Build established: Mutant 323 | -10/Materials | Discovered new exit (range 8) 631 | -10/Materials | Discovered new exit (range 7) 1328 | -10/Materials | Discovered new exit (range 7) 1364 | -10/Materials | Discovered new exit (range 16) 1376 | -10/Materials | Discovered new exit (range 6) 1388 | -10/Materials | Entered Subcaves 1412 | -10/Subcaves | Ambushed by Subdwellers from Twisted Machinery 1527 | -10/Subcaves | Core integrity fell below 50% 2919 | -10/Subcaves | Visited 4L-MR0's lab 3657 | -10/Subcaves | Core integrity fell below 20% 3671 | -10/Subcaves | Destroyed by 17-IH3(R) with Subdweller Laser Last Messages --------------- 03517_ Subatomizers dissect the Unknown Wheel, destroying it. 03537_ Subatomizers dissect the Battle Cannon. 03568_ Triggered Piercing Trap. 03568_ Spikes shoot up from the floor. 03568_ Ion Engine destroyed. 03568_ Critical hit (Impale). 03568_ Med. Laser destroyed. 03568_ Critical hit (Impale). 03589_ Subatomizers dissect the Battle Cannon. 03653_ O4-3OP(R): "SUBHATE!" 03655_ Lgt. Treads destroyed. 03660_ Seismic Detector destroyed. 03663_ Critical hit (Destroy). 03663_ Med. Laser destroyed. 03668_ Grenade Launcher destroyed. 03668_ Destroyed Grenade Launcher. 03668_ O4-3OP(R) destroyed. 03669_ System corrupted: Matter fused (-6). Map ----- +----------------------------------------------------+ | ????#= " # "### #?##### ###?### | | ????#" #% "## #####?????## ##?????? | | ????#" # ] ^## ##??????????####??????? | | ????# # ####?????????????????????? | | ????#"" # ## ## #????????????????????????? | | ????# ### # #" ##???????????????????????? | | ????### %## # ##??????????????????????? | | ??????##### # #??????????????????????? | | ?????## # #"" # #??????????????????????? | | ????##" # ###" # #??????????????????????? | | ????# "# "## #??????????????????????? | | ????#" #" "### ##?????????????????????? | | ????##" ###" ##### #?????????????????????? | | ?????####?##### #?????????????????????? | | ??????????????# ### #?????????????????????? | | ??????????????## #??###?????????????????????? | | ???????????????# #??????????????????????????? | | ???????????????# #?#####????????????????????? | | ???????????????# ### #????????????????????? | | ???????????????# ##????????????????????? | | ???????????????# #??????????????????### | | ??????????????## # # "#?????????????###### | | ??????????????# ## ##?#"""???????## | | ??????????????# # "#?# "??????## # | | ??????????????# ## ### #??????# | | ??????????????## @ #???????# # | | ??????????????# ## ##???????### ## # | | ??????????????# #??????????# # | | ??????????????## R #?????????## # # | | ??????????????## !!# ?" "" ##! ## | | ??????????????# " ""%& " " "&%! ## | | ??????????????# " ""! " ""##*= | | ??????????????# " "" ?????##% # | | ??????????????# ## #### ????#! #### | | ??????????????# ## "###??? ???# ### | | ??????????????# ### ###????? ##????# # | | ??????????????###?# " #??????#?????# | | ??????????????????## #???????????# ## | | ??????????????????# ##???????# #? | | ?????????????????## ##?##????# ? | | ?????????????????# #?# #????# % # | | ?????????????????# ## #????? ##?#% | | ????????????????## #????? ## #???# | | ???????????????## ##?????? ??###???## | | ??????????????## #??????? #???????##" | | ??????????????# #??????? ##?????## % | | ??????????????# ###?????? ?????## | | ????????????### #?#####?? ##???## # | | ????????????# #### ### % ??### %# | | ???????????### ## # ##?# && ### | +----------------------------------------------------+ Best States ------------- Heat Dissipation 39 Energy Generation 10 Energy Capacity 250 Matter Stores 300 Matter Capacity 300 Sight Range 16 Terrain Scan Density 10 Armor Coverage 150 Evasion (%) 50 Recoil Reduction 2 Item Schematics ----------------- None Robot Schematics ------------------ None Fabricated ------------ Nothing Repaired ---------- Nothing Alien Tech Used ----------------- None Achievements -------------- None Challenges ------------ None Game ------ Seed StrikeFlightSegregator Manual? 0 Play Time 00:18:03 Cumulative 67.4 hours Start 2025.06.18 @ 09:59:09 End 2025.06.18 @ 10:16:24 Sessions 1 Manual Loads 0 Difficulty Rogue Special Mode Halloween2020/ForbiddenLore Game No. 59 Rogue 40 Adventurer 0 Explorer 19 Win Type - Total 0 Types 0/0/0/0/0/0/0/0/0/0 Lore% 53 Gallery% 43 Achievement% 68 Wizard Run 0 Options --------- Layout 1 ASCII 0 Keyboard 0 Movement Mouse Keybinds 0 Fullscreen 2 Font 16/SmallcapsGlow Map View 50x40 Zoom Use 0% Tactical HUD 1 Map Filters NONE Filters NONE Steam SD RUN: 4c7be16b-ed5e-4cca-83b0-9855335ca9c7